bitfinex/quotes_BTCUSD_20240617
["timestamp","ask_amount","ask_price","bid_price","bid_amount"]
[1718653817591,0.04446007,66748.0,66747.0,0.41325933]
[1718653818400,0.04446007,66748.0,66747.0,0.3038]
[1718653819207,0.13307223,66748.0,66747.0,0.0485]
[1718653819399,0.23307223,66748.0,66747.0,0.0485]
[1718653819625,0.23307223,66748.0,66740.0,0.0485]
[1718653819759,0.41551216,66747.0,66740.0,0.0485]
[1718653819965,0.08861216,66746.0,66740.0,0.0485]
[1718653820331,0.08861216,66746.0,66740.0,0.0685]
[1718653820444,0.1,66747.0,66742.0,0.02]
[1718653820653,0.1,66747.0,66745.0,0.10945933]
[1718653820654,0.0887129,66746.0,66745.0,0.10945933]
[1718653820856,0.1,66747.0,66746.0,0.10945933]
[1718653821094,0.014,66748.0,66747.0,0.15795933]
[1718653821468,0.01916332,66749.0,66747.0,0.15795933]
[1718653821469,0.01916332,66749.0,66748.0,0.10945933]
[1718653821785,0.1,66755.0,66748.0,0.19385518]
[1718653821965,0.1,66755.0,66754.0,0.15795933]
[1718653822214,0.0960204,66755.0,66754.0,0.46175933]
[1718653822380,0.0792846,66757.0,66756.0,0.05]
[1718653822381,0.059976,66757.0,66756.0,0.05]
[1718653822549,0.059976,66757.0,66756.0,0.46025933]
[1718653822753,0.059976,66757.0,66756.0,0.46871053]
[1718653822954,0.15632367,66757.0,66756.0,0.46871053]
[1718653823524,0.25632367,66757.0,66756.0,0.46871053]
[1718653823952,0.27032367,66757.0,66756.0,0.46871053]
[1718653824149,0.28432367,66757.0,66756.0,0.46871053]
[1718653825338,0.28432367,66757.0,66756.0,0.3592512]
[1718653826268,0.25632367,66757.0,66756.0,0.3592512]
[1718653826773,0.28432367,66757.0,66756.0,0.3592512]
[1718653827028,0.27032367,66757.0,66756.0,0.3592512]
[1718653827227,0.19634767,66757.0,66756.0,0.3692512]
[1718653827343,0.10434767,66757.0,66756.0,0.46871053]
[1718653827550,0.21834767,66757.0,66756.0,0.46871053]
[1718653828193,0.31114342,66757.0,66756.0,0.46871053]
[1718653830100,0.29714342,66757.0,66756.0,0.3592512]
[1718653830287,0.28914342,66757.0,66756.0,0.3592512]
[1718653830512,0.30114342,66757.0,66756.0,0.3092512]
[1718653830667,0.30814342,66757.0,66756.0,0.0084512]
[1718653831087,0.29614342,66757.0,66756.0,0.0084512]
[1718653831271,0.29614342,66757.0,66756.0,0.09791053]
[1718653831474,0.30314342,66757.0,66756.0,0.0084512]
[1718653831883,0.31214342,66757.0,66756.0,0.11791053]
[1718653832090,0.31214342,66757.0,66756.0,0.0084512]
[1718653832502,0.31214342,66757.0,66756.0,0.10791053]
[1718653832701,0.31214342,66757.0,66756.0,0.0084512]
[1718653832912,0.29814342,66757.0,66756.0,0.0084512]
[1718653833110,0.31214342,66757.0,66756.0,0.0084512]
[1718653833458,0.31214342,66757.0,66756.0,0.09947828]
[1718653833699,0.31214342,66757.0,66756.0,0.16947828]
[1718653833904,0.3124186,66757.0,66756.0,0.16947828]
[1718653834299,0.3244186,66757.0,66756.0,0.16947828]
[1718653834910,0.3244186,66757.0,66756.0,0.31927728]
[1718653835109,0.3244186,66757.0,66756.0,0.16947828]
[1718653839609,0.3244186,66757.0,66756.0,0.01001895]
[1718653840243,0.3244186,66757.0,66754.0,0.0485]
[1718653840467,0.1923315,66756.0,66754.0,0.0485]
[1718653840696,0.1894186,66755.0,66754.0,0.0485]
[1718653840896,0.2894186,66755.0,66754.0,0.15795933]
[1718653841097,0.2894186,66755.0,66754.0,0.13795933]
[1718653841775,0.2894186,66755.0,66754.0,0.15795933]
[1718653842027,0.2894186,66755.0,66754.0,0.13795933]
[1718653842457,0.2894186,66755.0,66754.0,0.0485]
[1718653843482,0.2894186,66755.0,66754.0,0.13795933]
[1718653843695,0.2894186,66755.0,66754.0,0.15795933]
[1718653843901,0.2994186,66755.0,66754.0,0.15795933]
[1718653844833,0.3034186,66755.0,66754.0,0.15795933]
[1718653845063,0.3174186,66755.0,66754.0,0.15795933]
[1718653845269,0.3034186,66755.0,66754.0,0.15795933]
[1718653845684,0.3174186,66755.0,66754.0,0.15795933]
[1718653846063,0.3174186,66755.0,66754.0,0.0485]
[1718653847133,0.2894186,66755.0,66754.0,0.0485]
[1718653847549,0.3034186,66755.0,66754.0,0.0485]
[1718653847727,0.3034186,66755.0,66754.0,0.15795933]
[1718653847938,0.3174186,66755.0,66754.0,0.15795933]
[1718653848151,0.3174186,66755.0,66754.0,0.47115933]
[1718653848360,0.3174186,66755.0,66754.0,0.96096233]
[1718653848361,0.3034186,66755.0,66754.0,0.96096233]
[1718653848572,0.3034186,66755.0,66754.0,0.87647647]
[1718653848781,0.3174186,66755.0,66754.0,0.81115933]
[1718653849234,0.2174186,66755.0,66754.0,0.81115933]
[1718653849439,0.3174186,66755.0,66754.0,0.81115933]
[1718653850332,0.3174186,66755.0,66754.0,0.80115933]
[1718653850552,0.3034186,66755.0,66754.0,0.80115933]
[1718653851222,0.3154186,66755.0,66754.0,0.80115933]
[1718653851424,0.3014186,66755.0,66754.0,0.80115933]
[1718653851645,0.2894186,66755.0,66754.0,0.80115933]
[1718653851859,0.2954186,66755.0,66754.0,0.95096233]
[1718653852068,0.2954186,66755.0,66754.0,0.80115933]
[1718653852310,0.3064186,66755.0,66754.0,0.80115933]
[1718653852766,0.3064186,66755.0,66754.0,0.0485]
[1718653853476,0.30135025,66755.0,66754.0,0.0485]
[1718653853712,0.30135025,66755.0,66754.0,0.05849662]
[1718653856361,0.34602925,66755.0,66754.0,0.05849662]
[1718653856591,0.34602925,66755.0,66754.0,0.0485]
[1718653856830,0.34602925,66755.0,66754.0,0.05850606]
[1718653857304,0.30135025,66755.0,66754.0,0.05850606]
[1718653857546,0.30135025,66755.0,66754.0,0.0485]
[1718653857781,0.30135025,66755.0,66754.0,0.05850917]
[1718653857995,0.3247847,66755.0,66754.0,0.05850917]
[1718653858221,0.3247847,66755.0,66747.0,0.0485]
[1718653858222,0.41414271,66755.0,66747.0,0.0485]
[1718653858441,0.04468824,66751.0,66747.0,0.0485]
[1718653858653,0.18435025,66750.0,66747.0,0.0485]
[1718653858856,0.18435025,66749.0,66747.0,0.0485]
[1718653859079,0.18435025,66748.0,66747.0,0.0485]
[1718653859513,0.18435025,66748.0,66747.0,0.13795933]
[1718653859967,0.18435025,66748.0,66747.0,0.20795933]
[1718653860207,0.18435025,66748.0,66747.0,0.0485]
[1718653860437,0.18435025,66748.0,66744.0,0.4678]
[1718653860438,0.28435025,66748.0,66744.0,0.4678]
[1718653860681,0.30778773,66747.0,66744.0,0.4678]
[1718653860909,0.20778773,66746.0,66744.0,0.4678]
[1718653861121,0.20778773,66746.0,66733.0,0.0485]
[1718653861122,0.30778773,66745.0,66733.0,0.0485]
[1718653861336,0.04469631,66734.0,66733.0,0.0485]
[1718653861543,0.09201875,66734.0,66733.0,0.15795933]
[1718653861764,0.18684812,66734.0,66733.0,0.0485]
[1718653862873,0.19084812,66734.0,66733.0,0.0485]
[1718653865044,0.20084812,66734.0,66733.0,0.0485]
[1718653865756,0.20084812,66734.0,66733.0,0.15795933]
[1718653866453,0.10601875,66734.0,66733.0,0.15795933]
[1718653866663,0.1070712,66734.0,66733.0,0.15795933]
[1718653866886,0.19919126,66734.0,66733.0,0.15795933]
[1718653867669,0.1998501,66734.0,66733.0,0.15795933]
[1718653867864,0.1998501,66734.0,66733.0,0.0485]
[1718653868796,0.2998501,66734.0,66733.0,0.0485]
[1718653868920,0.2998501,66734.0,66733.0,0.05778208]
[1718653869132,0.2998501,66734.0,66733.0,0.0485]
[1718653870925,0.2998501,66734.0,66733.0,0.05778208]
[1718653871148,0.2998501,66734.0,66733.0,0.93900933]
[1718653871149,0.1998501,66734.0,66733.0,0.93900933]
[1718653871315,0.014,66734.0,66733.0,0.94829141]
[1718653871492,0.014,66734.0,66733.0,1.25799241]
[1718653871697,0.014,66734.0,66733.0,1.31217584]
[1718653872131,0.10709206,66734.0,66733.0,0.79844141]
[1718653872572,0.014,66734.0,66733.0,0.79844141]
[1718653873375,0.10709137,66734.0,66733.0,0.79844141]
[1718653874445,0.014,66734.0,66733.0,0.79844141]
[1718653875199,0.10686634,66734.0,66733.0,0.79844141]
[1718653875434,0.10686634,66734.0,66733.0,0.05778208]
[1718653875600,0.19429154,66734.0,66733.0,0.05778208]
[1718653875803,0.29429154,66734.0,66733.0,0.05778208]
[1718653876007,0.29429154,66734.0,66733.0,0.0485]
[1718653880528,0.29429154,66734.0,66733.0,0.15795933]
[1718653880529,0.29489168,66734.0,66733.0,0.15795933]
[1718653880939,0.29489168,66734.0,66733.0,0.16725547]
[1718653881146,0.29489168,66734.0,66733.0,0.78335647]
[1718653881147,0.19489168,66734.0,66733.0,0.78335647]
[1718653881358,0.10746648,66734.0,66733.0,0.93320647]
[1718653881580,0.014,66734.0,66733.0,0.48365547]
[1718653882179,0.10451811,66734.0,66733.0,0.48365547]
[1718653882386,0.1976261,66734.0,66733.0,0.48365547]
[1718653882599,0.10710799,66734.0,66733.0,0.48365547]
[1718653882955,0.10710799,66734.0,66733.0,0.93320647]
[1718653883174,0.10710799,66734.0,66733.0,0.94320647]
[1718653883347,0.10710799,66734.0,66733.0,0.48365547]
[1718653883980,0.19730445,66734.0,66733.0,0.48365547]
[1718653884609,0.10710799,66734.0,66733.0,0.48365547]
[1718653884811,0.18643996,66734.0,66733.0,0.48365547]
[1718653885622,0.10710799,66734.0,66733.0,0.48365547]
[1718653885833,0.10710799,66734.0,66733.0,0.68350547]
[1718653886028,0.10710799,66734.0,66733.0,0.99320647]
[1718653886304,0.10796799,66734.0,66733.0,0.99320647]
[1718653886505,0.10796799,66734.0,66733.0,0.53365547]
[1718653886940,0.10796799,66734.0,66733.0,0.69350547]
[1718653887173,0.10796799,66734.0,66733.0,0.53365547]
[1718653887368,0.17136132,66734.0,66733.0,0.53365547]
[1718653887820,0.17136132,66734.0,66733.0,0.68350547]
[1718653888171,0.17136132,66734.0,66733.0,0.53365547]
[1718653890986,0.16978063,66734.0,66733.0,0.53365547]
[1718653891166,0.16208159,66734.0,66733.0,0.68350547]
[1718653891377,0.16208159,66734.0,66733.0,0.69350547]
[1718653891583,0.10796799,66734.0,66733.0,0.69350547]
[1718653891781,0.1598322,66734.0,66733.0,0.53365547]
[1718653893144,0.16904375,66734.0,66733.0,0.53365547]
[1718653895761,0.10796799,66734.0,66733.0,0.54365547]
[1718653895960,0.16957407,66734.0,66733.0,0.53365547]
[1718653896969,0.16957407,66734.0,66733.0,0.05779614]
[1718653897199,0.26957407,66734.0,66733.0,0.0485]
[1718653897545,0.26957407,66734.0,66713.0,0.009405]
[1718653897546,0.2269,66728.0,66713.0,0.009405]
[1718653897755,0.12468671,66723.0,66714.0,0.09886433]
[1718653897959,0.25815847,66723.0,66716.0,0.21886433]
[1718653898181,0.35815847,66723.0,66716.0,0.21886433]
[1718653898379,0.33471407,66723.0,66716.0,0.21886433]
[1718653899117,0.25471407,66723.0,66722.0,0.11387533]
[1718653899335,0.25451407,66723.0,66722.0,0.11387533]
[1718653899538,0.26851407,66723.0,66722.0,0.12400245]
[1718653899741,0.26851407,66723.0,66722.0,0.01454312]
[1718653899913,0.25451407,66723.0,66722.0,0.10400245]
[1718653900141,0.25451407,66723.0,66722.0,0.01454312]
[1718653900347,0.25451407,66723.0,66722.0,0.12400245]
[1718653900547,0.26451407,66723.0,66722.0,0.01454312]
[1718653901073,0.25451407,66723.0,66722.0,0.12400245]
[1718653901390,0.58749707,66723.0,66722.0,0.01454312]
[1718653901561,0.25451407,66723.0,66722.0,0.01454312]
[1718653901767,0.26851407,66723.0,66722.0,0.004416]
[1718653902377,0.26851407,66723.0,66722.0,0.0140931]
[1718653902543,0.26851407,66723.0,66722.0,0.004416]
[1718653902954,0.25451407,66723.0,66722.0,0.004416]
[1718653903155,0.26451407,66723.0,66722.0,0.004416]
[1718653903317,0.27851407,66723.0,66722.0,0.0140931]
[1718653903526,0.26851407,66723.0,66722.0,0.004416]
[1718653903734,0.28251407,66723.0,66722.0,0.004416]
[1718653903945,0.28251407,66723.0,66722.0,0.12355243]
[1718653904185,0.26851407,66723.0,66722.0,0.12355243]
[1718653904390,0.28251407,66723.0,66722.0,0.12355243]
[1718653904684,0.27417911,66723.0,66722.0,0.12355243]
[1718653904897,0.27417911,66723.0,66722.0,0.0140931]
[1718653905111,0.27417911,66723.0,66722.0,0.12355243]
[1718653905315,0.78097923,66723.0,66722.0,0.0140931]
[1718653905517,0.73627511,66723.0,66722.0,0.0140931]
[1718653905725,0.72227511,66723.0,66722.0,0.004416]
[1718653906128,0.72082228,66723.0,66722.0,0.004416]
[1718653906274,0.92082228,66723.0,66722.0,0.004416]
[1718653906662,0.93482228,66723.0,66722.0,0.004416]
[1718653906869,0.99351886,66723.0,66722.0,0.004416]
[1718653907090,0.55272628,66723.0,66722.0,0.004416]
[1718653907289,0.35272628,66723.0,66722.0,0.004416]
[1718653907743,0.25540608,66723.0,66722.0,0.004416]
[1718653907940,0.33910931,66723.0,66722.0,0.01410111]
[1718653908146,0.33910931,66723.0,66722.0,0.004416]
[1718653908147,0.35310931,66723.0,66722.0,0.004416]
[1718653908313,0.35310931,66723.0,66722.0,0.01410111]
[1718653908516,0.33910931,66723.0,66722.0,0.004416]
[1718653908714,0.33910931,66723.0,66722.0,0.01410111]
[1718653908918,0.33910931,66723.0,66722.0,0.004416]
[1718653909112,0.33910931,66723.0,66722.0,0.01410111]
[1718653909361,0.33910931,66723.0,66722.0,0.004416]
[1718653909559,0.33910931,66723.0,66716.0,0.109405]
[1718653909560,0.2,66717.0,66716.0,0.109405]
[1718653909777,0.98663211,66717.0,66716.0,0.109405]
[1718653909916,1.08663211,66717.0,66716.0,0.109405]
[1718653910120,1.13132491,66717.0,66716.0,0.109405]
[1718653910354,1.08663211,66717.0,66716.0,0.109405]
[1718653910565,1.72215311,66717.0,66716.0,0.109405]
[1718653911214,1.56942423,66717.0,66716.0,0.109405]
[1718653911565,0.95890323,66717.0,66716.0,0.109405]
[1718653911782,1.44613223,66717.0,66716.0,0.109405]
[1718653911993,1.33073023,66717.0,66716.0,0.109405]
[1718653912169,1.34473023,66717.0,66716.0,0.109405]
[1718653913523,1.35873023,66717.0,66716.0,0.109405]
[1718653915860,1.35902947,66717.0,66716.0,0.109405]
[1718653916390,1.35903581,66717.0,66716.0,0.109405]
[1718653917702,1.35903581,66717.0,66716.0,0.11823891]
[1718653919003,1.72546469,66717.0,66716.0,0.07128148]
[1718653919428,1.74870062,66717.0,66716.0,0.06244757]
[1718653920406,1.76763422,66717.0,66716.0,0.06244757]
[1718653923081,0.60690722,66717.0,66716.0,0.06244757]
[1718653923287,0.60690722,66717.0,66710.0,0.25937767]
[1718653923288,0.13,66711.0,66710.0,0.11940679]
[1718653923516,0.13,66711.0,66692.0,0.07593072]
[1718653923517,0.28,66699.0,66692.0,0.07593072]
[1718653923733,0.28,66699.0,66698.0,0.45558432]
[1718653923945,0.18669187,66699.0,66698.0,0.10945933]
[1718653924149,0.1,66699.0,66698.0,0.10945933]
[1718653924363,0.28,66706.0,66705.0,0.10945933]
[1718653924364,0.08,66706.0,66705.0,0.10945933]
[1718653924766,0.16697011,66706.0,66705.0,0.10945933]
[1718653924981,0.26697011,66706.0,66705.0,0.10945933]
[1718653925193,0.18697011,66706.0,66705.0,0.10945933]
[1718653925371,0.18697011,66706.0,66705.0,1.13329933]
[1718653925674,0.08,66715.0,66714.0,0.10945933]
[1718653925909,0.3173544,66715.0,66714.0,0.10945933]
[1718653926945,0.2373544,66715.0,66714.0,0.10945933]
[1718653927129,0.2373544,66715.0,66714.0,0.40924633]
[1718653927130,0.1373544,66715.0,66714.0,0.40924633]
[1718653927276,0.1373544,66715.0,66714.0,0.68435933]
[1718653927668,0.1373544,66715.0,66714.0,1.14403933]
[1718653927969,0.1373544,66715.0,66714.0,1.44382633]
[1718653928171,0.10076881,66715.0,66714.0,1.94634221]
[1718653928380,0.014,66715.0,66714.0,1.94634221]
[1718653928584,0.028,66715.0,66714.0,1.94634221]
[1718653928802,0.014,66715.0,66714.0,1.9548194]
[1718653929002,0.060003,66727.0,66726.0,0.67175933]
[1718653929244,0.14678426,66727.0,66726.0,0.67175933]
[1718653929445,0.20934115,66727.0,66726.0,0.67175933]
[1718653929671,0.20934115,66727.0,66726.0,0.68023652]
[1718653930249,0.20911333,66727.0,66726.0,0.68023652]
[1718653930556,0.08655344,66727.0,66726.0,0.84010252]
[1718653930794,0.08655344,66727.0,66726.0,1.48956852]
[1718653930995,0.15238058,66727.0,66726.0,0.88010252]
[1718653931430,0.08655344,66727.0,66726.0,1.78930152]
[1718653931602,0.2,66739.0,66733.0,0.55901033]
[1718653931813,0.0663574,66734.0,66733.0,0.25930933]
[1718653932012,0.15384352,66734.0,66733.0,0.25930933]
[1718653932186,0.08692848,66734.0,66733.0,0.10945933]
[1718653932392,0.08692848,66734.0,66733.0,0.11793652]
[1718653932393,0.15193668,66734.0,66733.0,0.11793652]
[1718653932807,0.16593668,66734.0,66733.0,0.11793652]
[1718653934018,0.17993668,66734.0,66733.0,0.00847719]
[1718653934234,0.27993668,66734.0,66733.0,0.00847719]
[1718653934462,0.27993668,66734.0,66726.0,0.67175933]
[1718653934726,0.25107668,66733.0,66728.0,0.10945933]
[1718653934958,0.15107668,66732.0,66728.0,0.10945933]
[1718653935182,0.25107668,66731.0,66726.0,0.08945933]
[1718653935416,0.0650082,66730.0,66729.0,0.00806041]
[1718653935648,0.0650082,66730.0,66726.0,0.08945933]
[1718653935649,0.25107668,66730.0,66726.0,0.08945933]
[1718653935871,0.15107668,66729.0,66726.0,0.08945933]
[1718653936105,0.25107668,66728.0,66726.0,0.10945933]
[1718653936330,0.15107668,66727.0,66726.0,0.10945933]
[1718653936552,0.25107668,66727.0,66726.0,0.10945933]
[1718653938754,0.25107668,66727.0,66722.0,0.10945933]
[1718653939039,0.25107668,66727.0,66713.0,0.35295933]
[1718653939040,0.41296848,66726.0,66713.0,0.35295933]
[1718653939306,0.04461234,66721.0,66713.0,0.35295933]
[1718653939516,0.10930511,66720.0,66713.0,0.35295933]
[1718653939723,0.08,66724.0,66713.0,0.37295933]
[1718653939724,0.10930511,66719.0,66713.0,0.37295933]
[1718653939947,0.20930511,66718.0,66713.0,0.35295933]
[1718653940202,0.10930511,66717.0,66713.0,0.35295933]
[1718653940453,0.10930511,66716.0,66712.0,0.08945933]
[1718653940837,0.1,66718.0,66710.0,0.08945933]
[1718653940838,0.1,66715.0,66710.0,0.08945933]
[1718653941095,0.08311396,66714.0,66710.0,0.08945933]
[1718653941596,0.08311396,66714.0,66707.0,0.2419]
[1718653941597,0.08311396,66713.0,66707.0,0.08945933]
[1718653941841,0.08311396,66713.0,66706.0,0.02]
[1718653941842,0.08311396,66713.0,66706.0,0.10945933]
[1718653942102,0.3231,66712.0,66702.0,0.08945933]
[1718653942317,0.08311396,66711.0,66702.0,0.10945933]
[1718653942550,0.89198196,66711.0,66702.0,0.10945933]
[1718653942787,0.08,66709.0,66696.0,0.10945933]
[1718653943074,0.28045518,66708.0,66696.0,0.08945933]
[1718653943308,0.22756647,66707.0,66696.0,0.10945933]
[1718653943529,0.08291352,66706.0,66696.0,0.10945933]
[1718653943768,0.12756647,66706.0,66696.0,0.10945933]
[1718653944039,0.12756647,66706.0,66696.0,0.08945933]
[1718653944040,0.18291352,66705.0,66696.0,0.08945933]
[1718653944274,0.08291352,66704.0,66696.0,0.08945933]
[1718653944556,0.08291352,66704.0,66697.0,0.00811013]
[1718653945258,0.1,66706.0,66697.0,0.00811013]
[1718653945259,0.08291352,66703.0,66697.0,0.00811013]
[1718653945494,0.08291352,66702.0,66697.0,0.00811013]
[1718653945912,0.08291352,66701.0,66697.0,0.00811013]
[1718653945914,0.08291352,66701.0,66699.0,0.10945933]
[1718653946134,0.1,66704.0,66699.0,0.10945933]
[1718653946361,0.1,66704.0,66702.0,0.10945933]
[1718653946362,0.08323588,66703.0,66702.0,0.10945933]
[1718653946605,0.114,66704.0,66703.0,0.25937733]
[1718653946823,0.114,66704.0,66703.0,0.10945933]
[1718653947049,0.114,66704.0,66703.0,0.11757619]
[1718653947947,0.1,66704.0,66703.0,0.11757619]
[1718653948434,0.1,66714.0,66703.0,0.11757619]
[1718653948641,0.014,66704.0,66703.0,0.11757619]
[1718653949051,0.0138,66704.0,66703.0,0.11757619]
[1718653949248,0.0278,66704.0,66703.0,0.11757619]
[1718653949664,0.0138,66704.0,66703.0,0.11757619]
[1718653949872,0.0138,66704.0,66703.0,0.10757619]
[1718653950078,0.0138,66704.0,66703.0,0.00811686]
[1718653950220,0.00086,66712.0,66703.0,0.11757619]
[1718653950430,0.15358888,66712.0,66703.0,0.10945933]
[1718653950640,0.726212,66711.0,66702.0,0.08945933]
[1718653950839,0.680369,66711.0,66702.0,0.08945933]
[1718653951035,0.08242813,66710.0,66702.0,0.08945933]
[1718653951334,0.014,66704.0,66703.0,0.11756501]
[1718653951958,0.028,66704.0,66703.0,0.11756501]
[1718653952337,0.014,66704.0,66703.0,0.11756501]
[1718653953335,0.014,66704.0,66703.0,0.00810568]
[1718653953515,0.014,66704.0,66703.0,0.10945933]
[1718653953718,0.014,66704.0,66703.0,0.1175685]
[1718653954968,0.028,66704.0,66703.0,0.1175685]
[1718653955476,0.028,66704.0,66703.0,1.93202338]
[1718653955669,0.028,66704.0,66703.0,1.64218738]
[1718653956075,0.028,66704.0,66703.0,1.34235138]
[1718653956243,0.014,66704.0,66703.0,1.33235138]
[1718653956671,0.028,66704.0,66703.0,1.33235138]
[1718653956874,0.028,66704.0,66703.0,1.64218738]
[1718653957444,0.014,66704.0,66703.0,1.64218738]
[1718653958115,0.028,66704.0,66703.0,1.64218738]
[1718653958655,0.028,66704.0,66703.0,1.34235138]
[1718653960874,0.0051553,66704.0,66703.0,1.34235138]
[1718653961926,0.0051553,66704.0,66703.0,1.79489994]
[1718653962383,0.0051553,66704.0,66703.0,2.09473594]
[1718653962531,0.00086,66712.0,66711.0,0.36965933]
[1718653962929,0.00086,66712.0,66711.0,0.37776766]
[1718653964066,0.00986,66712.0,66711.0,0.37776766]
[1718653965034,0.09563932,66712.0,66711.0,0.37876766]
[1718653965235,0.01386,66712.0,66711.0,0.82846766]
[1718653965483,0.01386,66712.0,66711.0,1.2779281]
[1718653965685,0.01386,66712.0,66711.0,1.5777281]
[1718653965863,0.01386,66712.0,66711.0,2.03025698]
[1718653966548,0.01386,66712.0,66711.0,1.73045698]
[1718653966687,0.01386,66712.0,66711.0,1.66399654]
[1718653972306,0.01386,66712.0,66711.0,1.07079654]
[1718653972504,0.09634934,66712.0,66711.0,0.16856766]
[1718653975168,0.09634934,66712.0,66711.0,0.11856766]
[1718653976552,0.09634934,66712.0,66711.0,0.00910833]
[1718653978026,0.09634934,66712.0,66711.0,0.11856766]
[1718653979179,0.09634934,66712.0,66711.0,0.09856766]
[1718653980198,0.09634934,66712.0,66711.0,0.00910833]
[1718653980474,0.82102804,66712.0,66711.0,0.00910833]
[1718653980646,2.12610316,66712.0,66711.0,0.00910833]
[1718653980866,2.68395018,66712.0,66711.0,0.001]
[1718653981075,2.59753605,66712.0,66711.0,0.001]
[1718653981280,2.398305,66712.0,66711.0,0.001]
[1718653981430,2.389305,66712.0,66711.0,0.001]
[1718653981864,2.39276433,66712.0,66711.0,0.002]
[1718653982100,2.37876433,66712.0,66711.0,0.001]
[1718653982249,2.37876433,66712.0,66704.0,0.000946]
[1718653982250,0.08,66709.0,66704.0,0.000946]
[1718653982457,0.04467116,66706.0,66704.0,0.11040533]
[1718653982653,0.14467116,66707.0,66705.0,0.08945933]
[1718653982975,0.08399049,66706.0,66705.0,0.08945933]
[1718653983339,0.1286528,66706.0,66704.0,0.000946]
[1718653983542,0.18399049,66705.0,66704.0,0.000946]
[1718653984075,0.18428834,66705.0,66704.0,0.11040533]
[1718653984438,0.18428834,66705.0,66704.0,0.000946]
[1718653984922,0.18428834,66705.0,66704.0,0.001946]
[1718653985052,0.19828834,66705.0,66704.0,0.001946]
[1718653985255,1.78792722,66705.0,66704.0,0.001946]
[1718653985458,0.95121092,66705.0,66704.0,0.001946]
[1718653985858,0.98190404,66705.0,66704.0,0.001946]
[1718653986067,0.38171034,66705.0,66704.0,0.001946]
[1718653986275,0.19828834,66705.0,66704.0,0.001946]
[1718653986486,0.21228834,66705.0,66704.0,0.001946]
[1718653987317,0.25694888,66705.0,66704.0,0.001946]
[1718653987488,0.21228834,66705.0,66704.0,0.001946]
[1718653988473,0.128,66705.0,66704.0,0.001946]
[1718653988673,0.21026286,66705.0,66704.0,0.001946]
[1718653988878,0.21026286,66705.0,66704.0,0.01005127]
[1718653989176,0.21026286,66705.0,66704.0,0.001946]
[1718653989629,0.8735234,66705.0,66704.0,0.001946]
[1718653989825,0.82886286,66705.0,66704.0,0.001946]
[1718653990672,1.56705286,66705.0,66704.0,0.001946]
[1718653990884,1.48137674,66705.0,66704.0,0.001946]
[1718653991091,2.24137674,66705.0,66704.0,0.001946]
[1718653991295,1.48137674,66705.0,66704.0,0.001946]
[1718653991829,1.45337674,66705.0,66704.0,0.000946]
[1718653992218,1.53658919,66705.0,66704.0,0.001946]
[1718653992665,1.52604852,66705.0,66704.0,0.001946]
[1718653993615,1.53658919,66705.0,66704.0,0.001946]
[1718653994596,1.52604852,66705.0,66704.0,0.001946]
[1718653994907,1.480194,66705.0,66704.0,0.001946]
[1718653996246,0.980409,66705.0,66704.0,0.001946]
[1718653997834,0.441809,66705.0,66704.0,0.001946]
[1718653999212,0.28882394,66705.0,66704.0,0.001946]
[1718654003442,0.28907123,66705.0,66704.0,0.001946]
[1718654007724,0.20907123,66705.0,66704.0,0.001946]
[1718654007941,0.20907123,66705.0,66704.0,0.35910533]
[1718654008141,0.20907123,66705.0,66704.0,0.25777464]
[1718654008370,0.20907123,66705.0,66704.0,0.56097464]
[1718654009049,0.20907123,66705.0,66704.0,0.67043397]
[1718654010248,0.19507123,66705.0,66704.0,0.56097464]
[1718654010600,0.19507123,66705.0,66704.0,0.01007464]
[1718654010806,0.20907123,66705.0,66704.0,0.001946]
[1718654011199,0.19507123,66705.0,66704.0,0.000946]
[1718654011630,0.20907123,66705.0,66704.0,0.000946]
[1718654012209,0.128,66705.0,66704.0,0.000946]
[1718654012411,0.20638389,66705.0,66704.0,0.000946]
[1718654012992,0.20723389,66705.0,66704.0,0.000946]
[1718654014048,0.71155814,66705.0,66704.0,0.000946]
[1718654014253,0.73501001,66705.0,66704.0,0.000946]
[1718654014456,0.76789836,66705.0,66704.0,0.000946]
[1718654014802,0.75735769,66705.0,66704.0,0.000946]
[1718654015022,0.75737028,66705.0,66704.0,0.000946]
[1718654015224,0.69031464,66705.0,66704.0,0.000946]
[1718654016095,0.2,66700.0,66699.0,0.000946]
[1718654016299,0.2,66700.0,66688.0,0.5869]
[1718654016300,0.08,66694.0,66688.0,0.5869]
[1718654016531,0.07838389,66693.0,66688.0,0.5869]
[1718654016709,0.06707335,66691.0,66689.0,0.0077605]
[1718654016925,0.16891453,66690.0,66689.0,0.0077605]
[1718654017131,0.29769734,66690.0,66689.0,0.0077605]
[1718654017404,0.3413134,66690.0,66688.0,0.5869]
[1718654017586,0.1,66690.0,66689.0,0.0077605]
[1718654017789,0.27499211,66690.0,66689.0,0.09721983]
[1718654017995,0.27499211,66690.0,66689.0,0.11721983]
[1718654018210,0.34206509,66690.0,66689.0,0.0077605]
[1718654018422,0.35006509,66690.0,66689.0,0.11721983]
[1718654018640,0.35006509,66690.0,66689.0,0.0077605]
[1718654018853,0.35006509,66690.0,66689.0,0.11721983]
[1718654019481,0.28299211,66690.0,66689.0,0.19315055]
[1718654019628,0.28599211,66690.0,66689.0,0.19315055]
[1718654021057,0.28599211,66690.0,66689.0,0.24315055]
[1718654021269,0.18599211,66690.0,66689.0,1.81903148]
[1718654021514,0.09075143,66690.0,66689.0,1.81903148]
[1718654021825,0.011,66690.0,66689.0,1.81903148]
[1718654021966,0.011,66690.0,66689.0,1.42512743]
[1718654022167,0.011,66690.0,66689.0,1.72502643]
[1718654023214,0.011,66690.0,66689.0,0.73661983]
[1718654023555,0.08977428,66690.0,66689.0,0.74661983]
[1718654023964,0.08977428,66690.0,66689.0,0.73661983]
[1718654024231,0.08977428,66690.0,66689.0,0.89656883]
[1718654025118,0.08977428,66690.0,66689.0,0.97249955]
[1718654025350,0.08977428,66690.0,66689.0,1.27239855]
[1718654025551,0.09024061,66690.0,66689.0,1.57229755]
[1718654025752,0.09024061,66690.0,66689.0,1.72501011]
[1718654025871,0.011,66690.0,66689.0,1.72501011]
[1718654026071,0.011,66690.0,66689.0,1.57229755]
[1718654026318,0.011,66690.0,66689.0,0.97249955]
[1718654026472,0.011,66690.0,66689.0,1.42512743]
[1718654026675,0.011,66690.0,66689.0,1.72502643]
[1718654027086,0.09021055,66690.0,66689.0,1.72502643]
[1718654027286,0.09021055,66690.0,66689.0,1.42512743]
[1718654027711,0.09021055,66690.0,66689.0,1.34919671]
[1718654027968,0.09021055,66690.0,66689.0,1.04929771]
[1718654028173,0.09021055,66690.0,66689.0,0.89934871]
[1718654028371,0.09021055,66690.0,66689.0,0.88934871]